[Event "*** SCC Grand Prix: Titled Tuesday Blitz"]
[Site "Chess.com"]
[Date "2020.10.06"]
[Round "2"]
[White "juancruzarias"]
[Black "OldweakGM"]
[Result "0-1"]
[WhiteElo "2492"]
[BlackElo "2753"]
[TimeControl "180+1"]
[EndTime "10:15:16 PDT"]
[Termination "OldweakGM won by resignation"]

1. e4 {[%clk 0:03:00.9]} 1... c6 {[%clk 0:02:59.2]} 2. Nc3 {[%clk 0:03:00.3]}
2... d5 {[%clk 0:02:58.9]} 3. Nf3 {[%clk 0:03:01]} 3... dxe4 {[%clk 0:02:59.2]}
4. Nxe4 {[%clk 0:03:01.9]} 4... Nf6 {[%clk 0:02:59.7]} 5. Qe2 {[%clk 0:03:02.5]}
5... Nxe4 {[%clk 0:02:59.3]} 6. Qxe4 {[%clk 0:03:03.4]} 6... Qd5 {[%clk
0:02:56.9]} 7. Qe3 {[%clk 0:03:02.9]} 7... Bf5 {[%clk 0:02:55.4]} 8. b3 {[%clk
0:03:01.3]} 8... Qe6 {[%clk 0:02:53]} 9. Nd4 {[%clk 0:02:56.8]} 9... Qxe3+
{[%clk 0:02:52.6]} 10. fxe3 {[%clk 0:02:55]} 10... Bg6 {[%clk 0:02:51.4]} 11. d3
{[%clk 0:02:52.8]} 11... e6 {[%clk 0:02:51.2]} 12. Bb2 {[%clk 0:02:53.4]} 12...
Nd7 {[%clk 0:02:51.1]} 13. Be2 {[%clk 0:02:52.5]} 13... O-O-O {[%clk 0:02:50.3]}
14. O-O {[%clk 0:02:52.7]} 14... Nf6 {[%clk 0:02:49.6]} 15. Nf3 {[%clk
0:02:45.5]} 15... Bc5 {[%clk 0:02:49.6]} 16. d4 {[%clk 0:02:42.2]} 16... Bd6
{[%clk 0:02:48.1]} 17. h3 {[%clk 0:02:40]} 17... Bxc2 {[%clk 0:02:46.7]} 18.
Rac1 {[%clk 0:02:39.4]} 18... Bg6 {[%clk 0:02:45.7]} 19. a3 {[%clk 0:02:34]}
19... Ne4 {[%clk 0:02:40]} 20. b4 {[%clk 0:02:26.4]} 20... Ng3 {[%clk
0:02:38.5]} 21. Rfe1 {[%clk 0:02:27]} 21... Nxe2+ {[%clk 0:02:37]} 22. Rxe2
{[%clk 0:02:27.9]} 22... Kb8 {[%clk 0:02:37.5]} 23. Kf2 {[%clk 0:02:21.6]} 23...
f6 {[%clk 0:02:32.7]} 24. Rd2 {[%clk 0:02:21.2]} 24... Be4 {[%clk 0:02:31.1]}
25. Bc3 {[%clk 0:02:20.8]} 25... g5 {[%clk 0:02:28.1]} 26. a4 {[%clk 0:02:20.3]}
26... Rhg8 {[%clk 0:02:21.7]} 27. d5 {[%clk 0:02:20.1]} 27... e5 {[%clk
0:02:19.7]} 28. dxc6 {[%clk 0:02:19.5]} 28... Bxc6 {[%clk 0:02:17.7]} 29. b5
{[%clk 0:02:19.4]} 29... Be4 {[%clk 0:02:17.9]} 30. Rcd1 {[%clk 0:02:19.6]}
30... Bc7 {[%clk 0:02:18]} 31. Rd7 {[%clk 0:02:13.2]} 31... Kc8 {[%clk
0:02:12.1]} 32. R7d2 {[%clk 0:02:02.7]} 32... Rxd2+ {[%clk 0:02:09.3]} 33. Rxd2
{[%clk 0:02:02.7]} 33... Rd8 {[%clk 0:02:08.6]} 34. Rb2 {[%clk 0:02:02.9]} 34...
Rd3 {[%clk 0:02:00.4]} 35. Bb4 {[%clk 0:01:59.1]} 35... Bb6 {[%clk 0:01:57.2]}
36. Re2 {[%clk 0:01:59.5]} 36... Kd7 {[%clk 0:01:53.6]} 37. Nd2 {[%clk
0:01:56.6]} 37... Bd5 {[%clk 0:01:49.6]} 38. a5 {[%clk 0:01:53.8]} 38... Bc7
{[%clk 0:01:48.6]} 39. e4 {[%clk 0:01:53.1]} 39... Be6 {[%clk 0:01:46.5]} 40.
Nf3 {[%clk 0:01:43.4]} 40... Rb3 {[%clk 0:01:42.1]} 41. Rd2+ {[%clk 0:01:43.4]}
41... Ke8 {[%clk 0:01:39.5]} 42. Bd6 {[%clk 0:01:42.9]} 42... Bxa5 {[%clk
0:01:38]} 43. Ra2 {[%clk 0:01:41]} 43... Rxf3+ {[%clk 0:01:37.2]} 0-1

[Event "*** SCC Grand Prix: Titled Tuesday Blitz"]
[Site "Chess.com"]
[Date "2020.10.06"]
[Round "2"]
[White "Vamostodorecto"]
[Black "Evachess2006"]
[Result "1-0"]
[WhiteElo "2367"]
[BlackElo "1628"]
[TimeControl "180+1"]
[EndTime "10:15:21 PDT"]
[Termination "Vamostodorecto won by checkmate"]

1. d4 {[%clk 0:03:00.9]} 1... d5 {[%clk 0:02:52.1]} 2. c4 {[%clk 0:02:56.1]}
2... dxc4 {[%clk 0:02:46.9]} 3. Nf3 {[%clk 0:02:55.4]} 3... Nf6 {[%clk
0:02:42.2]} 4. e3 {[%clk 0:02:55.6]} 4... e6 {[%clk 0:02:24.4]} 5. Bxc4 {[%clk
0:02:54.9]} 5... b6 {[%clk 0:02:10.6]} 6. O-O {[%clk 0:02:53.9]} 6... Bb7 {[%clk
0:02:01]} 7. Nc3 {[%clk 0:02:53.4]} 7... Be7 {[%clk 0:01:44.6]} 8. Qe2 {[%clk
0:02:52.4]} 8... O-O {[%clk 0:01:32.9]} 9. e4 {[%clk 0:02:51.8]} 9... c5 {[%clk
0:01:15.1]} 10. Rd1 {[%clk 0:02:43.9]} 10... Qc7 {[%clk 0:01:08.1]} 11. Nb5
{[%clk 0:02:38.5]} 11... Qc8 {[%clk 0:00:41.2]} 12. d5 {[%clk 0:02:36.3]} 12...
exd5 {[%clk 0:00:34.4]} 13. exd5 {[%clk 0:02:34.9]} 13... a6 {[%clk 0:00:30.3]}
14. Qxe7 {[%clk 0:02:30.9]} 14... axb5 {[%clk 0:00:28.4]} 15. Bxb5 {[%clk
0:02:27.4]} 15... Nxd5 {[%clk 0:00:26.5]} 16. Qh4 {[%clk 0:02:23.9]} 16... Nd7
{[%clk 0:00:24.5]} 17. Bxd7 {[%clk 0:02:02.9]} 17... Qd8 {[%clk 0:00:22.2]} 18.
Ng5 {[%clk 0:02:03.8]} 18... h6 {[%clk 0:00:18.5]} 19. Bf5 {[%clk 0:02:02.1]}
19... g6 {[%clk 0:00:11.1]} 20. Qxh6 {[%clk 0:01:59.7]} 20... Qf6 {[%clk
0:00:06.2]} 21. Qh7# {[%clk 0:01:57.7]} 1-0

[Event "*** SCC Grand Prix: Titled Tuesday Blitz"]
[Site "Chess.com"]
[Date "2020.10.06"]
[Round "2"]
[White "LedakovAlexandr"]
[Black "HanSchut"]
[Result "1-0"]
[WhiteElo "2444"]
[BlackElo "2248"]
[TimeControl "180+1"]
[EndTime "10:15:26 PDT"]
[Termination "LedakovAlexandr won by resignation"]

1. Nf3 {[%clk 0:03:00.9]} 1... c5 {[%clk 0:03:00.1]} 2. c3 {[%clk 0:02:59.7]}
2... d5 {[%clk 0:02:59.3]} 3. d4 {[%clk 0:03:00.6]} 3... cxd4 {[%clk 0:03:00.2]}
4. cxd4 {[%clk 0:03:01.1]} 4... Nc6 {[%clk 0:03:01.1]} 5. Nc3 {[%clk 0:03:01.9]}
5... Bf5 {[%clk 0:03:00.3]} 6. Bf4 {[%clk 0:03:02.4]} 6... Rc8 {[%clk 0:03:00]}
7. Qb3 {[%clk 0:03:02.4]} 7... Qd7 {[%clk 0:02:40.5]} 8. Qxd5 {[%clk 0:02:51.5]}
8... Nb4 {[%clk 0:02:33.8]} 9. Qxd7+ {[%clk 0:02:42.4]} 9... Kxd7 {[%clk
0:02:34.7]} 10. Ne5+ {[%clk 0:02:35.3]} 10... Ke8 {[%clk 0:02:34.3]} 11. e4
{[%clk 0:02:35.1]} 11... Bd7 {[%clk 0:02:04.3]} 12. Nxd7 {[%clk 0:01:57.5]}
12... Kxd7 {[%clk 0:02:05.2]} 13. Bb5+ {[%clk 0:01:53.8]} 13... Kd8 {[%clk
0:02:04.8]} 14. Kd2 {[%clk 0:01:49.5]} 14... a6 {[%clk 0:02:02.6]} 15. Ba4
{[%clk 0:01:46.9]} 15... e6 {[%clk 0:01:55.9]} 16. Rhd1 {[%clk 0:01:33.7]} 16...
Nf6 {[%clk 0:01:53.1]} 17. Ke2 {[%clk 0:01:03.4]} 17... Nh5 {[%clk 0:01:40]} 18.
Be3 {[%clk 0:00:55.4]} 18... Be7 {[%clk 0:01:23.1]} 19. a3 {[%clk 0:00:54.2]}
19... Nc6 {[%clk 0:01:23]} 20. d5 {[%clk 0:00:54]} 20... exd5 {[%clk 0:01:17.5]}
21. Rxd5+ {[%clk 0:00:49.9]} 21... Ke8 {[%clk 0:01:09.9]} 22. Rxh5 {[%clk
0:00:49.6]} 1-0

[Event "*** SCC Grand Prix: Titled Tuesday Blitz"]
[Site "Chess.com"]
[Date "2020.10.06"]
[Round "2"]
[White "BeanScreen"]
[Black "saraswathii"]
[Result "1-0"]
[WhiteElo "2677"]
[BlackElo "2371"]
[TimeControl "180+1"]
[EndTime "10:15:38 PDT"]
[Termination "BeanScreen won by resignation"]

1. e4 {[%clk 0:02:59.9]} 1... c5 {[%clk 0:02:59.6]} 2. Nf3 {[%clk 0:03:00.2]}
2... e6 {[%clk 0:02:59.7]} 3. d4 {[%clk 0:03:00.7]} 3... cxd4 {[%clk 0:02:59.2]}
4. Nxd4 {[%clk 0:03:01.6]} 4... Nf6 {[%clk 0:02:39.3]} 5. Nc3 {[%clk 0:03:01.5]}
5... Nc6 {[%clk 0:02:38.6]} 6. Ndb5 {[%clk 0:03:01.3]} 6... Bb4 {[%clk
0:02:37.5]} 7. a3 {[%clk 0:03:01.6]} 7... Bxc3+ {[%clk 0:02:27.7]} 8. Nxc3
{[%clk 0:03:02.5]} 8... d5 {[%clk 0:02:27.8]} 9. exd5 {[%clk 0:03:03.4]} 9...
exd5 {[%clk 0:02:28.4]} 10. Qe2+ {[%clk 0:03:03.7]} 10... Be6 {[%clk 0:02:27.7]}
11. Bg5 {[%clk 0:03:03.9]} 11... O-O {[%clk 0:02:25.1]} 12. O-O-O {[%clk
0:03:03.9]} 12... Re8 {[%clk 0:02:21.1]} 13. Ne4 {[%clk 0:03:03.5]} 13... Bf5
{[%clk 0:02:11.4]} 14. Bxf6 {[%clk 0:03:03]} 14... gxf6 {[%clk 0:02:05.6]} 15.
Rxd5 {[%clk 0:03:02.8]} 15... Qxd5 {[%clk 0:01:43.8]} 16. Nxf6+ {[%clk
0:03:02.7]} 16... Kg7 {[%clk 0:01:42.5]} 17. Nxd5 {[%clk 0:02:56.1]} 17... Rxe2
{[%clk 0:01:41.5]} 18. Bxe2 {[%clk 0:02:57]} 18... Nd4 {[%clk 0:01:39.5]} 19.
Bd1 {[%clk 0:02:56]} 19... Rd8 {[%clk 0:01:32.2]} 20. Ne3 {[%clk 0:02:55.6]}
20... Bg6 {[%clk 0:01:31.5]} 21. c3 {[%clk 0:02:53.6]} 21... Nc6 {[%clk
0:01:28.9]} 22. Bc2 {[%clk 0:02:52.9]} 22... Ne7 {[%clk 0:01:21.1]} 23. Rd1
{[%clk 0:02:52.6]} 23... Rxd1+ {[%clk 0:01:17.5]} 24. Kxd1 {[%clk 0:02:53.5]}
24... Kf6 {[%clk 0:01:12.8]} 25. Bxg6 {[%clk 0:02:51.3]} 25... hxg6 {[%clk
0:01:07.6]} 26. Kd2 {[%clk 0:02:51.6]} 26... Ke6 {[%clk 0:01:04.3]} 27. Kd3
{[%clk 0:02:51.5]} 27... Nc6 {[%clk 0:00:45.1]} 28. f4 {[%clk 0:02:51.2]} 28...
Ne7 {[%clk 0:00:40.1]} 29. b4 {[%clk 0:02:46.1]} 29... Nc8 {[%clk 0:00:30.2]}
30. c4 {[%clk 0:02:44.6]} 30... Ne7 {[%clk 0:00:29]} 31. g4 {[%clk 0:02:43.5]}
31... Nc6 {[%clk 0:00:20.1]} 32. Nc2 {[%clk 0:02:42.6]} 32... Ne7 {[%clk
0:00:19.3]} 33. Nd4+ {[%clk 0:02:42.5]} 33... Kd7 {[%clk 0:00:16.7]} 34. c5
{[%clk 0:02:41.4]} 34... Ng8 {[%clk 0:00:14.7]} 35. Nf3 {[%clk 0:02:33.7]} 35...
Ke7 {[%clk 0:00:08.8]} 36. Kd4 {[%clk 0:02:31.6]} 36... Nf6 {[%clk 0:00:03.5]}
37. Ne5 {[%clk 0:02:31.8]} 37... Ne8 {[%clk 0:00:03]} 38. b5 {[%clk 0:02:31.2]}
1-0

[Event "*** SCC Grand Prix: Titled Tuesday Blitz"]
[Site "Chess.com"]
[Date "2020.10.06"]
[Round "2"]
[White "Ermito2020"]
[Black "ajdemipopushi"]
[Result "1-0"]
[WhiteElo "2647"]
[BlackElo "2348"]
[TimeControl "180+1"]
[EndTime "10:15:38 PDT"]
[Termination "Ermito2020 won on time"]

1. e4 {[%clk 0:03:00.9]} 1... c5 {[%clk 0:02:59.7]} 2. Nf3 {[%clk 0:03:00.8]}
2... g6 {[%clk 0:02:59.2]} 3. c3 {[%clk 0:03:00.3]} 3... d5 {[%clk 0:02:59.1]}
4. e5 {[%clk 0:02:57.2]} 4... Nc6 {[%clk 0:02:58.5]} 5. d4 {[%clk 0:02:57.3]}
5... Bg4 {[%clk 0:02:58.4]} 6. Bb5 {[%clk 0:02:55.5]} 6... Qb6 {[%clk
0:02:56.6]} 7. Na3 {[%clk 0:02:28.9]} 7... e6 {[%clk 0:02:49.3]} 8. O-O {[%clk
0:02:26]} 8... Bxf3 {[%clk 0:02:39.8]} 9. Qxf3 {[%clk 0:02:25.4]} 9... cxd4
{[%clk 0:02:40]} 10. cxd4 {[%clk 0:02:23.8]} 10... Bxa3 {[%clk 0:02:12.3]} 11.
Bxc6+ {[%clk 0:02:22]} 11... bxc6 {[%clk 0:02:12.3]} 12. Qxa3 {[%clk 0:02:22.5]}
12... Ne7 {[%clk 0:02:05]} 13. Bg5 {[%clk 0:02:20.5]} 13... Nf5 {[%clk
0:02:03.8]} 14. Bf6 {[%clk 0:02:20.6]} 14... Kd7 {[%clk 0:01:50]} 15. g4 {[%clk
0:02:11.9]} 15... Nxd4 {[%clk 0:01:13.2]} 16. Qe7+ {[%clk 0:02:11]} 16... Kc8
{[%clk 0:01:12.5]} 17. Bxh8 {[%clk 0:02:08]} 17... Ne2+ {[%clk 0:00:53.1]} 18.
Kh1 {[%clk 0:02:04.8]} 18... Qd4 {[%clk 0:00:53.2]} 19. f3 {[%clk 0:01:56.3]}
19... Qe3 {[%clk 0:00:04]} 20. Bf6 {[%clk 0:01:41.6]} 1-0

[Event "*** SCC Grand Prix: Titled Tuesday Blitz"]
[Site "Chess.com"]
[Date "2020.10.06"]
[Round "2"]
[White "MarceloPlaya"]
[Black "jerry_77"]
[Result "0-1"]
[WhiteElo "2254"]
[BlackElo "2455"]
[TimeControl "180+1"]
[EndTime "10:15:42 PDT"]
[Termination "jerry_77 won on time"]

1. e4 {[%clk 0:03:00.9]} 1... c6 {[%clk 0:03:00.1]} 2. d4 {[%clk 0:02:59.9]}
2... d5 {[%clk 0:03:01]} 3. e5 {[%clk 0:02:59.5]} 3... c5 {[%clk 0:03:00.8]} 4.
c3 {[%clk 0:02:57.9]} 4... Nc6 {[%clk 0:03:01.5]} 5. Be3 {[%clk 0:02:54.5]} 5...
f6 {[%clk 0:03:00.6]} 6. exf6 {[%clk 0:02:52.4]} 6... Nxf6 {[%clk 0:03:00.4]} 7.
Bd3 {[%clk 0:02:49.3]} 7... e5 {[%clk 0:02:59.7]} 8. dxe5 {[%clk 0:02:44.9]}
8... Nxe5 {[%clk 0:03:00.6]} 9. Bb5+ {[%clk 0:02:42.9]} 9... Bd7 {[%clk
0:02:42]} 10. Bxd7+ {[%clk 0:02:41.5]} 10... Qxd7 {[%clk 0:02:42.9]} 11. Nf3
{[%clk 0:02:39.3]} 11... Nxf3+ {[%clk 0:02:41.7]} 12. Qxf3 {[%clk 0:02:38.6]}
12... O-O-O {[%clk 0:02:42.3]} 13. O-O {[%clk 0:02:27.7]} 13... Bd6 {[%clk
0:02:42.1]} 14. b4 {[%clk 0:02:20.9]} 14... Rhf8 {[%clk 0:02:36.3]} 15. bxc5
{[%clk 0:01:52.7]} 15... Bxh2+ {[%clk 0:02:35.2]} 16. Kh1 {[%clk 0:01:50.2]}
16... Ng4 {[%clk 0:02:35.4]} 17. Qh3 {[%clk 0:01:45.9]} 17... Be5 {[%clk
0:02:32.1]} 18. Na3 {[%clk 0:01:31.8]} 18... g6 {[%clk 0:02:26.9]} 19. Rab1
{[%clk 0:01:03]} 19... Rf5 {[%clk 0:02:24.4]} 20. c6 {[%clk 0:00:56.3]} 20...
bxc6 {[%clk 0:02:17.5]} 21. Qxg4 {[%clk 0:00:38.8]} 21... Rh5+ {[%clk
0:02:16.6]} 22. Qxh5 {[%clk 0:00:38.5]} 22... gxh5 {[%clk 0:02:17.5]} 23. Rb4
{[%clk 0:00:30.6]} 23... Bxc3 {[%clk 0:02:13.3]} 24. Rb3 {[%clk 0:00:20.3]}
24... d4 {[%clk 0:02:12.5]} 25. Bf4 {[%clk 0:00:19.7]} 25... Qf5 {[%clk
0:02:11.8]} 26. Bh2 {[%clk 0:00:10.8]} 26... Qd3 {[%clk 0:02:07.1]} 27. Rfb1
{[%clk 0:00:09.6]} 27... Kd7 {[%clk 0:02:04.9]} 28. Rb7+ {[%clk 0:00:08.4]}
28... Ke6 {[%clk 0:02:04]} 29. Rxa7 {[%clk 0:00:06.8]} 29... Kf6 {[%clk
0:02:00.2]} 0-1

[Event "*** SCC Grand Prix: Titled Tuesday Blitz"]
[Site "Chess.com"]
[Date "2020.10.06"]
[Round "2"]
[White "shineatchess"]
[Black "GHANDEEVAM2003"]
[Result "0-1"]
[WhiteElo "2182"]
[BlackElo "2954"]
[TimeControl "180+1"]
[EndTime "10:15:56 PDT"]
[Termination "GHANDEEVAM2003 won by resignation"]

1. e4 {[%clk 0:03:00.9]} 1... c5 {[%clk 0:02:58.5]} 2. Nf3 {[%clk 0:02:59.8]}
2... d6 {[%clk 0:02:59.1]} 3. Bb5+ {[%clk 0:02:59.1]} 3... Nd7 {[%clk 0:02:58]}
4. Ba4 {[%clk 0:02:58.9]} 4... Nf6 {[%clk 0:02:55.9]} 5. d3 {[%clk 0:02:54.2]}
5... g6 {[%clk 0:02:52]} 6. c4 {[%clk 0:02:53.6]} 6... Bg7 {[%clk 0:02:52.1]} 7.
O-O {[%clk 0:02:52.1]} 7... O-O {[%clk 0:02:52.5]} 8. Bc2 {[%clk 0:02:51]} 8...
Ne5 {[%clk 0:02:47.6]} 9. Nxe5 {[%clk 0:02:46.9]} 9... dxe5 {[%clk 0:02:48.5]}
10. Nc3 {[%clk 0:02:47.2]} 10... b6 {[%clk 0:02:46.5]} 11. f4 {[%clk 0:02:43.6]}
11... exf4 {[%clk 0:02:44.5]} 12. Bxf4 {[%clk 0:02:41.9]} 12... Ng4 {[%clk
0:02:43.1]} 13. Kh1 {[%clk 0:02:31.9]} 13... Qd7 {[%clk 0:02:37.9]} 14. Qe2
{[%clk 0:02:18.3]} 14... Ne5 {[%clk 0:02:36.3]} 15. Nd5 {[%clk 0:02:11.1]} 15...
Bb7 {[%clk 0:02:27]} 16. Rae1 {[%clk 0:01:53.3]} 16... Rad8 {[%clk 0:02:23]} 17.
b3 {[%clk 0:01:29.9]} 17... Kh8 {[%clk 0:02:00.3]} 18. Bg5 {[%clk 0:01:16.4]}
18... f6 {[%clk 0:01:57.5]} 19. Be3 {[%clk 0:01:01.6]} 19... Nc6 {[%clk
0:01:55.4]} 20. Rf3 {[%clk 0:00:46.3]} 20... e6 {[%clk 0:01:52.2]} 21. Nf4
{[%clk 0:00:44.3]} 21... Kg8 {[%clk 0:01:52.3]} 22. Rg3 {[%clk 0:00:41.6]} 22...
Rfe8 {[%clk 0:01:44.7]} 23. h4 {[%clk 0:00:38.8]} 23... Nd4 {[%clk 0:01:43.8]}
24. Bxd4 {[%clk 0:00:37.6]} 24... Qxd4 {[%clk 0:01:44.7]} 25. h5 {[%clk
0:00:36.5]} 25... g5 {[%clk 0:01:44.4]} 26. Nh3 {[%clk 0:00:35.8]} 26... h6
{[%clk 0:01:41.4]} 27. Rf1 {[%clk 0:00:32.6]} 27... Qe5 {[%clk 0:01:29.4]} 28.
Nf2 {[%clk 0:00:30.2]} 28... Qxg3 {[%clk 0:01:28.5]} 0-1

[Event "*** SCC Grand Prix: Titled Tuesday Blitz"]
[Site "Chess.com"]
[Date "2020.10.06"]
[Round "2"]
[White "VladimirBugayev"]
[Black "Th3_Hound"]
[Result "0-1"]
[WhiteElo "2309"]
[BlackElo "2497"]
[TimeControl "180+1"]
[EndTime "10:15:58 PDT"]
[Termination "Th3_Hound won by resignation"]

1. e4 {[%clk 0:03:00.9]} 1... e5 {[%clk 0:02:59.6]} 2. Nf3 {[%clk 0:03:00.6]}
2... Nc6 {[%clk 0:02:59.7]} 3. d4 {[%clk 0:03:01.2]} 3... exd4 {[%clk
0:02:59.6]} 4. Nxd4 {[%clk 0:03:01.9]} 4... Nf6 {[%clk 0:02:59.7]} 5. Nxc6
{[%clk 0:03:01.5]} 5... bxc6 {[%clk 0:03:00.6]} 6. e5 {[%clk 0:03:01.7]} 6...
Qe7 {[%clk 0:03:00.5]} 7. Qe2 {[%clk 0:03:02.2]} 7... Nd5 {[%clk 0:03:00.7]} 8.
h4 {[%clk 0:03:02.5]} 8... Qe6 {[%clk 0:02:53.7]} 9. c4 {[%clk 0:02:49.3]} 9...
Nb6 {[%clk 0:02:53]} 10. Rh3 {[%clk 0:02:26.9]} 10... a5 {[%clk 0:02:43.4]} 11.
b3 {[%clk 0:02:20.2]} 11... a4 {[%clk 0:02:40.2]} 12. Bb2 {[%clk 0:02:19.6]}
12... Bb4+ {[%clk 0:02:36.2]} 13. Nd2 {[%clk 0:02:17.3]} 13... axb3 {[%clk
0:02:25.7]} 14. axb3 {[%clk 0:02:16.3]} 14... Rxa1+ {[%clk 0:02:25.9]} 15. Bxa1
{[%clk 0:02:16.9]} 15... O-O {[%clk 0:02:16.2]} 16. Kd1 {[%clk 0:01:44.6]} 16...
Bb7 {[%clk 0:02:08.2]} 17. Rg3 {[%clk 0:01:35.9]} 17... Ra8 {[%clk 0:02:03.7]}
18. Bb2 {[%clk 0:01:34.1]} 18... Ra2 {[%clk 0:01:59.1]} 19. Kc1 {[%clk 0:01:29]}
19... c5 {[%clk 0:01:46.7]} 20. Kb1 {[%clk 0:01:12.7]} 20... Ra8 {[%clk
0:01:42.7]} 21. Qd1 {[%clk 0:01:09]} 21... Qf5+ {[%clk 0:01:39.7]} 22. Bd3
{[%clk 0:00:59.2]} 22... Qxf2 {[%clk 0:01:38.6]} 23. Qg4 {[%clk 0:00:58.4]}
23... Qe1+ {[%clk 0:01:23.6]} 24. Bc1 {[%clk 0:00:57.3]} 24... g6 {[%clk
0:01:05.9]} 25. Qf4 {[%clk 0:00:56.1]} 25... Ra1+ {[%clk 0:00:49.8]} 26. Kxa1
{[%clk 0:00:53.8]} 26... Qxc1+ {[%clk 0:00:50.3]} 27. Nb1 {[%clk 0:00:54.1]}
27... Qxf4 {[%clk 0:00:49.2]} 0-1

[Event "*** SCC Grand Prix: Titled Tuesday Blitz"]
[Site "Chess.com"]
[Date "2020.10.06"]
[Round "2"]
[White "MoreChessJulia"]
[Black "nickmatta"]
[Result "0-1"]
[WhiteElo "1939"]
[BlackElo "2373"]
[TimeControl "180+1"]
[EndTime "10:16:09 PDT"]
[Termination "nickmatta won by resignation"]

1. d4 {[%clk 0:02:59.7]} 1... d5 {[%clk 0:02:58.5]} 2. c4 {[%clk 0:02:59.3]}
2... e6 {[%clk 0:02:58.9]} 3. Nc3 {[%clk 0:02:59.1]} 3... Be7 {[%clk 0:02:58.8]}
4. cxd5 {[%clk 0:02:58.7]} 4... exd5 {[%clk 0:02:59.7]} 5. Bf4 {[%clk 0:02:59]}
5... c6 {[%clk 0:03:00]} 6. e3 {[%clk 0:02:58.8]} 6... Bf5 {[%clk 0:03:00.2]} 7.
g4 {[%clk 0:02:57.6]} 7... Be6 {[%clk 0:02:59.8]} 8. h3 {[%clk 0:02:56.5]} 8...
h5 {[%clk 0:02:59.2]} 9. Bg2 {[%clk 0:02:53]} 9... Nd7 {[%clk 0:02:56.5]} 10. f3
{[%clk 0:02:47.6]} 10... Bh4+ {[%clk 0:02:47.4]} 11. Kf1 {[%clk 0:02:45.1]}
11... Ne7 {[%clk 0:02:31.2]} 12. Nge2 {[%clk 0:02:40]} 12... Ng6 {[%clk
0:02:28.5]} 13. Bg3 {[%clk 0:02:37.3]} 13... Qf6 {[%clk 0:02:22.8]} 14. Kg1
{[%clk 0:02:26.5]} 14... O-O-O {[%clk 0:02:13.6]} 15. Qa4 {[%clk 0:02:20.4]}
15... Bxg3 {[%clk 0:01:56.8]} 16. Nxg3 {[%clk 0:02:19.8]} 16... Kb8 {[%clk
0:01:51.5]} 17. b4 {[%clk 0:02:14.9]} 17... Nb6 {[%clk 0:01:48.2]} 18. Qb3
{[%clk 0:02:11.4]} 18... Nc4 {[%clk 0:01:41.9]} 19. Na4 {[%clk 0:02:10]} 19...
Nh4 {[%clk 0:01:34]} 20. Rf1 {[%clk 0:01:19.5]} 20... Nd2 {[%clk 0:01:33.3]} 21.
Qb2 {[%clk 0:01:16.2]} 21... Nxf1 {[%clk 0:01:27.4]} 22. Nxf1 {[%clk 0:01:15.4]}
22... Nxf3+ {[%clk 0:01:25.7]} 23. Bxf3 {[%clk 0:01:15.5]} 23... Qxf3 {[%clk
0:01:26.6]} 24. b5 {[%clk 0:01:14]} 24... cxb5 {[%clk 0:01:19.6]} 25. Qxb5
{[%clk 0:01:12.3]} 25... Bd7 {[%clk 0:01:13.5]} 26. Qb4 {[%clk 0:01:05]} 26...
Bxa4 {[%clk 0:01:13.3]} 27. Qxa4 {[%clk 0:01:04.2]} 27... hxg4 {[%clk
0:01:13.8]} 28. Qc2 {[%clk 0:00:52.1]} 28... Rxh3 {[%clk 0:01:02.8]} 29. Rxh3
{[%clk 0:00:50.6]} 29... gxh3 {[%clk 0:01:03.2]} 30. Qh2+ {[%clk 0:00:48]} 30...
Ka8 {[%clk 0:01:01.8]} 0-1

[Event "*** SCC Grand Prix: Titled Tuesday Blitz"]
[Site "Chess.com"]
[Date "2020.10.06"]
[Round "2"]
[White "Tooweak2slow03"]
[Black "FloMasterAAK"]
[Result "0-1"]
[WhiteElo "2789"]
[BlackElo "2556"]
[TimeControl "180+1"]
[EndTime "10:16:11 PDT"]
[Termination "FloMasterAAK won by resignation"]

1. e4 {[%clk 0:03:00.9]} 1... e5 {[%clk 0:02:59.2]} 2. Nf3 {[%clk 0:03:00.6]}
2... Nc6 {[%clk 0:02:59.9]} 3. Nc3 {[%clk 0:03:01.2]} 3... Nf6 {[%clk
0:02:54.9]} 4. a3 {[%clk 0:03:01.5]} 4... a6 {[%clk 0:02:49.1]} 5. d4 {[%clk
0:03:01.3]} 5... exd4 {[%clk 0:02:48.3]} 6. Nxd4 {[%clk 0:03:02.2]} 6... Bc5
{[%clk 0:02:48.7]} 7. Be3 {[%clk 0:03:01.7]} 7... Nxd4 {[%clk 0:02:41.4]} 8.
Bxd4 {[%clk 0:03:02.6]} 8... Bxd4 {[%clk 0:02:41.5]} 9. Qxd4 {[%clk 0:03:03.5]}
9... d6 {[%clk 0:02:41.5]} 10. Be2 {[%clk 0:03:02.7]} 10... O-O {[%clk
0:02:40.4]} 11. f4 {[%clk 0:03:01.2]} 11... Re8 {[%clk 0:02:36.8]} 12. O-O
{[%clk 0:02:57.5]} 12... Bd7 {[%clk 0:02:26.3]} 13. Bf3 {[%clk 0:02:56.5]} 13...
Bc6 {[%clk 0:02:25.8]} 14. Rae1 {[%clk 0:02:54.3]} 14... Nd7 {[%clk 0:02:22.8]}
15. e5 {[%clk 0:02:45.9]} 15... Bxf3 {[%clk 0:02:22.9]} 16. Rxf3 {[%clk
0:02:45.5]} 16... dxe5 {[%clk 0:02:10]} 17. fxe5 {[%clk 0:02:44.4]} 17... Nxe5
{[%clk 0:02:08.6]} 18. Qxe5 {[%clk 0:02:11.6]} 18... Rxe5 {[%clk 0:02:07.3]} 19.
Rxe5 {[%clk 0:02:12.5]} 19... Qd2 {[%clk 0:01:53]} 20. Re2 {[%clk 0:02:09.2]}
20... Qc1+ {[%clk 0:01:52.2]} 21. Rf1 {[%clk 0:02:07.7]} 21... Qxb2 {[%clk
0:01:52.7]} 22. Nb1 {[%clk 0:02:07.5]} 22... Qb6+ {[%clk 0:01:45.2]} 23. Kh1
{[%clk 0:02:05]} 23... Rd8 {[%clk 0:01:43.7]} 24. Nd2 {[%clk 0:02:02.4]} 24...
Qb5 {[%clk 0:01:42.4]} 25. Rfe1 {[%clk 0:02:00.2]} 25... h6 {[%clk 0:01:37.2]}
26. Nf3 {[%clk 0:01:58]} 26... Qc5 {[%clk 0:01:35]} 27. a4 {[%clk 0:01:56.4]}
27... Qc4 {[%clk 0:01:32.4]} 28. a5 {[%clk 0:01:56.3]} 28... Qc3 {[%clk
0:01:30.8]} 29. Re5 {[%clk 0:01:53.6]} 29... Qxc2 {[%clk 0:01:29.3]} 30. Re7
{[%clk 0:01:53.8]} 30... Rd1 {[%clk 0:01:24.6]} 31. Rxd1 {[%clk 0:01:50.3]}
31... Qxd1+ {[%clk 0:01:25.5]} 32. Re1 {[%clk 0:01:51.2]} 32... Qd7 {[%clk
0:01:22.3]} 33. Rc1 {[%clk 0:01:47.9]} 33... c6 {[%clk 0:01:21.3]} 34. h3 {[%clk
0:01:46.3]} 34... Qf5 {[%clk 0:01:20.4]} 35. Nd4 {[%clk 0:01:44.7]} 35... Qxa5
{[%clk 0:01:20.2]} 36. Rd1 {[%clk 0:01:40.4]} 36... Qd5 {[%clk 0:01:19.3]} 37.
Rd2 {[%clk 0:01:38.8]} 37... a5 {[%clk 0:01:18.3]} 38. Nf3 {[%clk 0:01:37.7]}
38... Qc5 {[%clk 0:01:16.7]} 39. g4 {[%clk 0:01:36.2]} 39... a4 {[%clk 0:01:17]}
40. h4 {[%clk 0:01:34.4]} 40... b5 {[%clk 0:01:17.1]} 41. g5 {[%clk 0:01:33.2]}
41... Qf5 {[%clk 0:01:16]} 42. Kg2 {[%clk 0:01:31.7]} 42... a3 {[%clk
0:01:13.4]} 43. Kf2 {[%clk 0:01:25.6]} 43... b4 {[%clk 0:01:12.7]} 44. g6 {[%clk
0:01:23.9]} 44... fxg6 {[%clk 0:01:12]} 45. Rd8+ {[%clk 0:01:22.2]} 45... Kh7
{[%clk 0:01:11.9]} 46. Kg3 {[%clk 0:01:21.8]} 46... a2 {[%clk 0:01:11.5]} 47.
Ra8 {[%clk 0:01:21]} 47... b3 {[%clk 0:01:09]} 48. Nd4 {[%clk 0:01:19.7]} 48...
Qe5+ {[%clk 0:01:08.7]} 0-1